bitfinex-derivatives/quotes_ETHF0:USTF0_20250428
["timestamp","ask_amount","ask_price","bid_price","bid_amount"]
[1745847072048,1.56399591,1801.2,1801.1,5.351]
[1745847072249,4.16649591,1801.2,1801.1,5.351]
[1745847072454,4.16649591,1801.2,1801.1,1.388]
[1745847073146,3.71237,1801.2,1801.1,1.388]
[1745847073856,3.05669873,1801.2,1801.1,1.388]
[1745847074045,4.16656873,1801.2,1801.1,1.388]
[1745847074246,4.16656873,1801.2,1800.3,0.1388]
[1745847074247,8.05669873,1801.2,1800.3,0.1388]
[1745847074446,3.2078,1800.6,1800.3,0.1388]
[1745847074653,3.0566417,1800.5,1800.4,41.91036]
[1745847075153,0.45408782,1800.5,1800.4,40.8]
[1745847075359,4.31805,1800.6,1800.4,41.91036]
[1745847075558,3.2078,1800.6,1800.5,1.1103]
[1745847075856,4.77199761,1800.6,1800.4,41.91034]
[1745847076058,2.5897,1800.5,1800.4,41.91034]
[1745847076256,2.5897,1800.5,1800.4,40.8]
[1745847076457,2.5897,1800.5,1800.4,41.91036]
[1745847076757,2.5897,1800.5,1800.4,40.8]
[1745847076957,2.5897,1800.5,1800.3,0.1388]
[1745847077147,4.31816,1800.4,1800.3,0.1388]
[1745847077645,3.66126266,1800.4,1800.3,0.1388]
[1745847077846,4.31816,1800.4,1800.3,0.1388]
[1745847078051,7.33083631,1800.4,1800.3,0.1388]
[1745847079251,2.77624,1800.2,1799.7,1.11077]
[1745847079450,3.2078,1799.9,1799.7,1.11077]
[1745847079660,2.5086,1799.8,1799.7,1.11077]
[1745847080062,3.01267631,1799.8,1799.6,3.965]
[1745847080360,3.71187631,1799.7,1799.6,3.965]
[1745847080559,6.22047631,1799.7,1799.6,5.07585]
[1745847081459,3.71187631,1799.7,1799.6,5.07585]
[1745847081663,0.50407631,1799.7,1799.6,10.07585]
[1745847082253,3.2078,1799.8,1799.7,1.11079]
[1745847082764,6.86446,1800.3,1800.0,1.11056]
[1745847082974,2.476,1800.2,1800.0,1.1106]
[1745847083160,2.97781394,1800.2,1800.1,1.11054]
[1745847083462,0.50181394,1800.2,1800.1,1.11054]
[1745847083851,3.2078,1800.3,1800.1,1.11054]
[1745847084057,3.2078,1800.3,1800.2,1.11048]
[1745847084256,12.1427027,1800.6,1800.5,1.1103]
[1745847084465,7.2474027,1800.6,1800.5,1.1103]
[1745847085059,7.2474027,1800.6,1800.2,5.07648]
[1745847085060,7.2474027,1800.6,1800.4,1.11032]
[1745847085266,7.74909713,1800.6,1800.4,1.11032]
[1745847085462,7.74909713,1800.6,1800.4,1.11035]
[1745847085463,3.08359443,1800.6,1800.4,1.11035]
[1745847085765,2.5819,1800.6,1800.5,1.1103]
[1745847086065,2.5819,1800.6,1800.4,1.11032]
[1745847086262,3.2078,1800.7,1800.6,1.11024]
[1745847086564,3.2078,1800.7,1800.5,5.07625]
[1745847086764,2.5364,1800.6,1800.5,5.07625]
[1745847086971,3.2078,1800.7,1800.6,1.11024]
[1745847087171,5.7442,1800.7,1800.6,1.11024]
[1745847087865,1.11024,1800.6,1800.2,3.966]
[1745847088064,5.7442,1800.5,1800.2,3.966]
[1745847088270,6.8545,1800.5,1800.3,1.11038]
[1745847088767,5.7442,1800.5,1800.3,1.11038]
[1745847089065,5.7442,1800.5,1800.2,3.966]
[1745847089266,5.7442,1800.5,1800.4,1.11036]
[1745847089469,2.5364,1800.5,1800.3,3.50117]
[1745847089767,2.5364,1800.5,1800.4,1.11036]
[1745847090066,3.0386615,1800.5,1800.2,3.966]
[1745847090263,3.2078,1800.3,1800.2,5.07646]
[1745847090457,3.2078,1800.3,1800.2,3.966]
[1745847090766,6.3094615,1800.3,1800.2,5.07648]
[1745847091167,7.4198815,1800.3,1800.2,3.966]
[1745847092268,6.3094615,1800.3,1800.2,5.07648]
[1745847092655,3.7100615,1800.3,1800.2,5.07648]
[1745847093766,6.1724615,1800.3,1800.2,5.07648]
[1745847093958,2.9646615,1800.3,1800.2,5.07648]
[1745847094760,3.04021249,1800.3,1800.2,5.07648]
[1745847094957,0.57781249,1800.3,1800.2,5.07648]
[1745847095368,3.78561249,1800.3,1800.2,5.07648]
[1745847095668,3.78561249,1800.3,1800.1,1.11049]
[1745847095856,1.11054,1800.1,1800.0,9.0211]
[1745847096064,5.98419,1800.1,1799.5,40.8]
[1745847096364,4.31851,1799.9,1799.6,3.71943]
[1745847096663,4.31859,1799.7,1799.5,45.87589]
[1745847096865,2.56365099,1799.6,1799.5,45.87591]
[1745847097167,3.06633639,1799.6,1799.5,45.87591]
[1745847097669,0.57823639,1799.6,1799.5,45.87591]
[1745847098465,0.57823639,1799.6,1799.5,44.765]
[1745847098466,3.78603639,1799.6,1799.5,44.765]
[1745847098768,4.89730912,1799.6,1799.5,3.965]
[1745847099269,3.78645912,1799.6,1799.5,3.965]
[1745847099469,4.89732912,1799.6,1799.4,44.51954]
[1745847099769,3.04020813,1799.5,1799.4,44.51954]
[1745847099962,3.11575912,1799.5,1799.2,3.966]
[1745847100169,3.2078,1799.4,1799.2,3.966]
[1745847100366,3.64814,1799.3,1799.2,3.966]
[1745847100563,3.47368907,1799.3,1798.9,3.966]
[1745847100871,4.31902,1799.0,1798.9,3.966]
[1745847101065,5.35103055,1799.0,1798.8,2.5086]
[1745847101272,3.78645912,1799.0,1798.9,40.8]
[1745847101565,5.35105416,1799.0,1798.8,2.5086]
[1745847101870,5.35105416,1799.0,1798.8,43.3086]
[1745847101871,4.89767912,1799.0,1798.8,43.3086]
[1745847102070,0.65421011,1798.9,1798.8,40.8]
[1745847102272,0.65421011,1798.9,1798.8,41.91135]
[1745847102468,0.65421011,1798.9,1798.8,40.8]
[1745847103170,1.10731316,1798.9,1798.7,3.966]
[1745847103366,3.2078,1798.8,1798.7,3.966]
[1745847103767,6.85835,1798.8,1798.7,3.966]
[1745847103968,2.77853,1798.7,1798.0,0.40636944]
[1745847104163,3.2078,1798.2,1798.0,2.5742]
[1745847104466,2.5392,1798.1,1798.0,43.3742]
[1745847104666,4.10304836,1798.1,1797.8,1.11194]
[1745847104974,3.71090813,1798.0,1797.8,1.11194]
[1745847105167,2.63790198,1797.9,1797.4,2.78049]
[1745847105373,3.2078,1797.5,1797.1,20.83580948]
[1745847105571,2.4868,1797.4,1797.3,1.11227]
[1745847105772,2.98990813,1797.4,1797.2,44.31329]
[1745847105971,3.2078,1797.3,1797.1,18.43480948]
[1745847106172,2.98990813,1797.2,1797.1,18.43480948]
[1745847106368,4.25335011,1797.2,1797.1,18.43480948]
[1745847106567,3.14101011,1797.2,1797.1,18.43480948]
[1745847107581,3.14101011,1797.2,1797.1,1.1124]
[1745847108566,0.65421011,1797.2,1797.1,1.1124]
[1745847109072,3.2078,1797.9,1797.7,1.11197]
[1745847109277,2.4025,1797.8,1797.5,3.969]
[1745847109476,2.4025,1797.8,1797.6,1.11207]
[1745847110371,3.2078,1797.9,1797.7,1.11198]
[1745847110681,3.2078,1797.9,1797.8,1.11197]
[1745847110973,3.2078,1797.9,1797.6,2.4048]
[1745847110974,2.4025,1798.1,1797.9,1.11185]
[1745847111176,2.4025,1798.1,1797.6,5.185]
[1745847111366,2.4025,1798.1,1797.6,2.4048]
[1745847111562,2.4025,1798.1,1797.7,2.4742]
[1745847111767,3.2078,1798.0,1797.8,5.08193]
[1745847112081,3.2078,1798.0,1797.8,3.97]
[1745847112279,3.53974,1797.9,1797.6,1.11207]
[1745847112577,3.2078,1797.8,1797.6,1.11207]
[1745847112776,2.4278,1797.7,1797.6,1.11207]
[1745847113074,2.4278,1797.7,1797.6,40.8]
[1745847113271,2.4278,1797.7,1797.5,6.4442]
[1745847113470,1.11223,1797.4,1797.1,3.97]
[1745847113676,2.4278,1797.3,1797.2,41.91228]
[1745847113879,2.4278,1797.3,1797.1,3.97]
[1745847114374,3.2078,1797.9,1797.5,1.11215]
[1745847114575,3.2078,1797.9,1797.2,43.58085]
[1745847114576,3.2078,1797.6,1797.2,45.7096]
[1745847114776,2.5462,1797.5,1797.4,1.11217]
[1745847115174,3.2078,1797.6,1797.5,1.11215]
[1745847115372,1.11192,1797.9,1797.4,5.98833]
[1745847115373,6.86592,1797.9,1797.4,5.98833]
[1745847115578,5.754,1797.9,1797.6,1.11207]
[1745847116178,1.11198,1797.8,1797.5,1.1121]
[1745847116373,2.5462,1797.7,1797.4,2.4688]
[1745847116574,2.5462,1797.7,1797.6,1.11209]
[1745847117983,2.5462,1797.7,1797.5,1.1121]
[1745847118285,2.78023,1797.6,1797.1,3.971]
[1745847118588,5.7084,1797.5,1797.1,47.55197]
[1745847118781,5.7084,1797.5,1797.2,2.4486]
[1745847119085,5.7084,1797.5,1797.3,1.11225]
[1745847119284,5.7084,1797.5,1797.4,1.11221]
[1745847119486,5.7084,1797.5,1797.2,2.4486]
[1745847119679,5.7084,1797.5,1797.3,1.11226]
[1745847120281,5.7084,1797.5,1797.4,1.11221]
[1745847120482,6.89548,1798.0,1797.4,9.95933]
[1745847120683,2.3898,1797.9,1797.5,2.5034]
[1745847120887,5.5976,1797.9,1797.5,3.61554]
[1745847121191,5.5976,1797.9,1797.5,2.5034]
[1745847121392,1.11202,1797.8,1797.5,3.61553]
[1745847121591,2.3898,1797.7,1797.5,2.5034]
[1745847122095,3.50184,1797.7,1797.5,3.61554]
[1745847122398,0.49348194,1797.6,1797.5,3.61554]
[1745847122597,2.88328194,1797.6,1797.5,3.61554]
[1745847123289,2.88328194,1797.6,1797.5,3.61555]
[1745847123598,6.09108194,1797.6,1797.3,3.2078]
[1745847123898,5.98835,1797.4,1797.0,2.4549]
[1745847124098,3.2078,1797.1,1796.8,4.10268]
[1745847124290,3.97367194,1797.0,1796.8,5.21526]
[1745847124493,3.2078,1796.9,1796.8,5.21526]
[1745847124689,3.70128194,1796.9,1796.8,5.21526]
[1745847125188,6.06898194,1796.9,1796.8,1.13226]
[1745847125384,6.52000538,1796.9,1796.8,1.13226]
[1745847125587,11.52000538,1796.9,1796.1,3.2078]
[1745847125893,1.11333,1795.6,1795.5,13.33313948]
[1745847126095,7.95430538,1795.6,1795.3,3.38969787]
[1745847126292,3.2078,1795.4,1795.3,2.18020787]
[1745847126487,3.70128194,1795.4,1795.3,2.18020787]
[1745847126696,4.15088658,1795.4,1795.3,2.18020787]
[1745847126895,1.11376,1794.9,1794.8,5.70136547]
[1745847127198,0.44940855,1794.9,1794.8,10.03194273]
[1745847127498,0.49348194,1794.9,1794.8,1.1138]
[1745847127701,3.2078,1795.5,1794.7,20.61982869]
[1745847127887,0.4488965,1795.4,1794.9,10.03194273]
[1745847128197,3.6566965,1795.3,1795.0,10.03194273]
[1745847128496,3.802,1795.5,1795.3,10.03194273]
[1745847128705,0.44112536,1796.4,1795.0,2.4427]
[1745847128706,3.2078,1796.5,1795.4,13.23974273]
[1745847128993,0.44850297,1796.4,1796.2,10.03194273]
[1745847129197,3.2078,1796.7,1796.3,10.03194273]
[1745847129400,3.2078,1796.9,1796.4,10.03194273]
[1745847129597,3.2078,1796.7,1796.4,10.03194273]
[1745847129900,3.2078,1797.3,1797.0,10.03194273]
[1745847132803,5.32881547,1797.0,1796.7,79.45355273]
[1745847133001,5.32881547,1797.0,1796.9,10.03194273]
[1745847133187,5.77900927,1797.0,1796.9,13.83394273]
[1745847133393,6.89179956,1797.0,1796.6,3.2078]
[1745847133704,3.2078,1796.8,1796.6,10.03194273]
[1745847133891,0.45047409,1796.7,1796.6,60.0]
[1745847134097,3.60922,1796.9,1796.8,10.03194273]
[1745847134394,2.94712916,1796.9,1796.6,10.03194273]
[1745847134596,0.45042916,1796.8,1796.6,10.03194273]
[1745847134790,0.45042916,1796.8,1796.7,1.11265]
[1745847135098,0.45042916,1796.8,1796.7,10.03194273]
[1745847135397,0.45042916,1796.8,1796.5,3.2078]
[1745847135588,0.45042916,1796.7,1796.5,74.53894273]
[1745847135795,0.45042916,1796.6,1796.5,65.61975]
[1745847135992,3.49924,1796.9,1796.6,10.03194273]
[1745847136304,3.65852449,1796.8,1796.6,10.03194273]
[1745847136504,1.11281,1796.5,1796.1,1.113]
[1745847136799,6.04522449,1796.4,1796.1,10.03194273]
[1745847137100,3.2078,1796.9,1796.2,50.83194273]
[1745847137404,0.45073205,1796.8,1796.7,1.11265]
[1745847137697,1.11274,1796.6,1796.5,10.03194273]
[1745847138003,3.4994,1796.7,1796.4,4.507]
[1745847138200,5.5945,1796.7,1796.3,4.507]
[1745847138400,1.11273,1796.6,1796.3,14.53894273]
[1745847138596,1.11283,1796.4,1796.3,14.53894273]
[1745847138793,2.3867,1796.7,1796.4,10.03194273]
[1745847139299,2.3867,1796.7,1796.3,60.0]
[1745847139300,1.11293,1796.3,1796.1,4.507]
[1745847139498,1.11305,1796.1,1796.0,10.03194273]
[1745847139896,1.11307,1796.1,1795.9,7.0397]
[1745847140091,3.2078,1796.2,1796.0,10.03194273]
[1745847140296,4.32076,1796.2,1796.0,1.11306]
[1745847140509,3.2078,1796.2,1796.1,10.03194273]
[1745847141004,3.2078,1796.6,1796.1,70.03194273]
[1745847141191,5.31271,1797.0,1796.1,70.03194273]
[1745847141192,5.98928,1796.8,1796.2,10.03194273]
[1745847141507,1.11283,1796.4,1796.3,10.03194273]
[1745847141706,1.11289,1796.3,1796.2,4.507]
[1745847142002,1.11298,1796.2,1796.0,40.8]
[1745847142194,3.2078,1796.1,1796.0,4.507]
[1745847142399,5.683,1796.3,1796.0,5.62006]
[1745847142596,3.2078,1796.1,1796.0,4.507]
[1745847142797,3.2078,1796.4,1796.1,11.14492273]
[1745847142999,1.11294,1796.3,1796.1,10.03194273]
[1745847143201,1.1018515,1796.3,1796.1,10.03194273]
[1745847143403,3.2078,1796.4,1796.1,10.03194273]
[1745847143404,3.2078,1796.4,1796.1,11.14491273]
[1745847143707,1.11289,1796.3,1796.2,10.03194273]
[1745847143909,4.32067,1796.4,1796.2,10.03194273]
[1745847144096,1.1129,1796.3,1796.2,60.0]
[1745847144406,3.2078,1796.4,1796.3,11.14483273]
[1745847144708,1.11273,1796.6,1796.4,1.1128]
[1745847144900,5.6656,1796.8,1796.5,11.14470273]
[1745847145094,6.77822,1796.8,1796.6,1.11268]
[1745847145300,3.2078,1796.8,1796.7,10.03194273]
[1745847145500,3.2078,1796.8,1796.7,11.14459273]
[1745847145804,3.2078,1797.3,1796.7,72.81355273]
[1745847146007,4.32009,1797.3,1797.0,1.11242]
[1745847146299,3.2078,1797.3,1797.2,10.03194273]
[1745847146504,3.2078,1797.3,1797.2,11.14428273]
[1745847146710,5.32881547,1797.5,1797.4,1.11221]
[1745847147004,5.32881547,1797.5,1797.4,11.14415273]
[1745847147209,5.32881547,1797.5,1797.4,71.14415273]
[1745847148409,5.32881547,1797.5,1797.4,70.03194273]
[1745847148605,5.32881547,1797.5,1797.4,71.14415273]
[1745847148800,1.45221547,1797.5,1797.4,71.14415273]
[1745847149000,7.2474027,1797.7,1797.6,1.11209]
[1745847149201,7.2474027,1797.7,1797.6,15.65103273]
[1745847149500,7.2474027,1797.7,1797.6,74.53894273]
[1745847149802,7.2474027,1797.7,1797.6,77.01784273]
[1745847150002,3.2078,1798.1,1797.6,82.01784273]
[1745847150202,3.2078,1798.1,1797.9,11.14383273]
[1745847150498,3.2078,1798.1,1797.6,66.9859]
[1745847150499,3.2078,1798.1,1798.0,12.54714273]
[1745847150701,4.76403093,1798.1,1798.0,17.05414273]
[1745847150903,4.76407669,1798.1,1798.0,77.05414273]
[1745847151109,1.11177,1798.2,1798.0,77.05414273]
[1745847151411,1.11165,1798.4,1798.2,10.03194273]
[1745847151606,1.1119,1797.9,1797.7,40.8]
[1745847151902,1.11184,1798.0,1797.9,10.03194273]
[1745847152096,1.11209,1797.6,1797.5,2.5547]
[1745847152502,3.2078,1797.7,1797.5,72.58664273]
[1745847152702,3.2078,1797.7,1797.6,10.03194273]
[1745847153006,8.66749,1798.1,1797.6,10.03194273]
[1745847153007,9.0958,1798.1,1797.6,10.03194273]
[1745847153306,1.11181,1798.1,1798.0,10.03194273]
[1745847153508,4.31956,1798.2,1798.0,14.53794273]
[1745847153697,1.11178,1798.1,1798.0,66.999]
[1745847154100,1.11178,1798.1,1798.0,77.03094273]
[1745847154301,3.2078,1798.2,1798.0,78.14276273]
[1745847154511,4.31952,1798.2,1798.1,10.03194273]
[1745847154806,3.2078,1798.5,1798.1,10.03194273]
[1745847155105,3.2078,1798.5,1798.4,10.03194273]
[1745847155297,4.31933,1798.5,1798.4,14.53694273]
[1745847155614,3.2078,1798.5,1798.4,74.53694273]
[1745847155908,1.1115,1798.6,1798.4,74.53694273]
[1745847156096,1.1115,1798.6,1798.5,2.4137]
[1745847156302,4.3193,1798.6,1798.5,12.44564273]
[1745847156499,3.2078,1798.6,1798.0,3.2078]
[1745847156700,1.11159,1798.4,1798.3,10.03194273]
[1745847157003,1.11141,1798.7,1798.6,10.03194273]
[1745847157306,1.11141,1798.7,1798.5,10.03194273]
[1745847157307,1.11152,1798.6,1798.5,10.03194273]
[1745847157510,1.11152,1798.6,1798.4,3.58839]
[1745847157804,1.11152,1798.6,1798.5,10.03194273]
[1745847158110,4.31932,1798.6,1798.5,12.50874273]
[1745847158313,1.11152,1798.6,1798.5,72.50874273]
[1745847158810,4.31932,1798.6,1798.5,72.50874273]
[1745847159401,4.31932,1798.6,1798.5,2.4768]
[1745847159602,4.76395706,1798.6,1798.5,2.4768]
[1745847160011,4.76395706,1798.6,1798.5,12.50874273]
[1745847160207,3.65243706,1798.6,1798.0,2.493]
[1745847160505,3.2078,1798.1,1798.0,16.14108273]
[1745847160706,4.31946,1798.3,1798.2,10.03194273]
[1745847160909,1.11162,1798.4,1798.3,10.03194273]
[1745847161112,1.11159,1798.4,1798.3,12.53624273]
[1745847161410,1.11159,1798.4,1798.3,77.20124273]
[1745847161710,1.11159,1798.4,1798.3,17.20124273]
[1745847162410,1.11159,1798.4,1798.3,78.31288273]
[1745847162605,4.31938,1798.5,1798.3,77.20124273]
[1745847162815,1.11158,1798.5,1798.4,12.43004273]
[1745847163007,3.2078,1798.5,1798.4,12.43004273]
[1745847163312,1.11147,1798.6,1798.4,73.54159273]
[1745847163509,2.77875,1798.6,1797.8,4.31974]
[1745847163717,3.2078,1798.7,1797.8,4.31974]
[1745847163718,3.2078,1797.9,1797.8,62.3981]
[1745847164011,2.77933,1798.2,1797.8,63.51002]
[1745847164012,1.11188,1798.0,1797.8,63.51002]
[1745847164312,1.11188,1798.0,1797.9,12.43004273]
[1745847164816,1.11188,1798.0,1797.9,72.43004273]
[1745847165503,1.11184,1798.0,1797.9,72.43004273]
[1745847165706,3.2078,1798.1,1798.0,1.11184]
[1745847165910,4.31958,1798.1,1798.0,12.42794273]
[1745847166110,4.31958,1798.1,1798.0,73.53978273]
[1745847166111,3.2078,1798.1,1798.0,73.53978273]
[1745847166314,4.31958,1798.1,1798.0,72.42794273]
[1745847166511,6.82248,1798.1,1798.0,72.42794273]
[1745847167617,4.31958,1798.1,1798.0,72.42794273]
[1745847168113,4.31958,1798.1,1798.0,73.53978273]
[1745847168114,3.2078,1798.1,1798.0,73.53978273]
[1745847168314,1.11166,1798.3,1798.1,1.11173]
[1745847168515,1.11166,1798.3,1798.2,2.396]
[1745847168715,4.31946,1798.3,1798.2,12.42794273]
[1745847169416,3.2078,1798.3,1798.2,13.53966273]
[1745847169616,3.2078,1798.3,1798.2,16.07606273]
[1745847169811,4.31946,1798.3,1798.2,74.96434273]
[1745847170215,4.31946,1798.3,1798.2,76.07606273]
[1745847170411,4.31946,1798.3,1798.2,74.96434273]
[1745847170712,4.31946,1798.3,1798.2,76.07606273]
[1745847170916,4.31946,1798.3,1798.2,74.96434273]
[1745847172116,4.31946,1798.3,1798.2,79.62934273]
[1745847172313,3.2078,1798.3,1798.2,79.62934273]
[1745847172514,3.2078,1798.3,1798.2,80.74106273]
[1745847173217,4.31946,1798.3,1798.2,79.62934273]
[1745847173615,4.76600719,1798.3,1798.2,79.62934273]
[1745847175417,2.77933,1798.2,1798.1,4.665]
[1745847175612,2.77946,1798.1,1797.5,2.4382]
[1745847175815,1.11215,1797.5,1797.4,7.0515]
[1745847176119,0.44754278,1797.5,1797.4,67.0515]
[1745847176416,1.11215,1797.5,1797.4,117.88344273]
[1745847176728,3.65534278,1797.5,1797.2,4.665]
[1745847176913,4.32007,1797.3,1797.2,4.665]
[1745847177220,4.76761278,1797.3,1797.2,14.69694273]
[1745847177419,4.76830783,1797.3,1797.2,14.69694273]
[1745847177913,1.56050783,1797.3,1797.2,77.07444273]
[1745847178107,1.11246,1797.0,1796.9,2.5492]
[1745847178307,1.56069783,1797.0,1796.9,69.5917]
[1745847178511,0.44823783,1797.0,1796.9,79.62364273]
[1745847179317,1.11252,1796.9,1796.8,45.465]
[1745847179528,6.04443783,1796.9,1796.8,105.465]
[1745847179724,5.56047,1797.6,1796.8,105.465]
[1745847179725,3.2078,1797.5,1796.8,121.60952273]
[1745847179919,5.5962,1797.5,1797.3,10.03194273]
[1745847180121,5.5962,1797.5,1796.9,7.0425]
[1745847180122,8.37674,1797.5,1796.9,7.0425]
[1745847180415,3.2078,1797.3,1797.2,1.11234]
[1745847180622,3.2078,1797.3,1797.1,3.48986]
[1745847180816,4.32007,1797.3,1797.2,12.46094273]
[1745847181121,1.11239,1797.2,1797.1,10.03194273]
[1745847181321,1.11239,1797.2,1797.1,12.46094273]
[1745847181620,1.11239,1797.2,1797.1,2.429]
[1745847182023,3.2078,1797.3,1796.9,4.665]
[1745847182221,4.3202,1797.1,1797.0,10.03194273]
[1745847182617,1.11246,1797.0,1796.9,7.094]
[1745847182818,1.11246,1797.0,1796.9,67.094]
[1745847183020,1.11246,1797.0,1796.9,78.23846273]
[1745847183217,3.2078,1797.1,1796.7,2.5254]
[1745847183525,2.78147,1796.8,1796.4,1.11283]
[1745847183718,1.11274,1796.6,1796.5,10.03194273]
[1745847183918,3.2078,1796.7,1796.5,13.64110273]
[1745847184121,3.2078,1796.7,1796.5,3.60916]
[1745847184423,1.11283,1796.4,1796.3,4.666]
[1745847184623,1.11292,1796.3,1796.1,2.5254]
[1745847184821,3.2078,1796.4,1796.3,10.03194273]
[1745847185023,3.2078,1796.4,1796.3,11.14483273]
[1745847185234,3.2078,1796.4,1796.3,71.14483273]
[1745847185922,3.2078,1796.4,1796.3,70.03194273]
[1745847186125,3.2078,1796.4,1796.3,71.14483273]
[1745847187126,3.2078,1796.4,1796.1,7.1924]
[1745847187325,4.32076,1796.2,1796.1,2.5254]
[1745847187627,1.11305,1796.1,1795.9,1.11314]
[1745847187826,3.2078,1796.0,1795.9,10.03194273]
[1745847188024,3.2078,1796.0,1795.9,73.51408273]
[1745847188526,3.2078,1796.3,1796.2,1.11296]
[1745847188731,3.2078,1796.4,1796.3,1.11285]
[1745847188921,7.00063,1796.8,1796.4,1.11278]
[1745847189224,1.11269,1796.7,1796.5,10.03194273]
[1745847189428,1.11262,1796.8,1796.6,10.03194273]
[1745847189625,5.5798,1796.9,1796.6,10.03194273]
[1745847189626,1.11265,1796.7,1796.6,10.03194273]
[1745847189825,1.11265,1796.7,1796.5,2.369]
[1745847190127,1.11263,1796.8,1796.6,10.03194273]
[1745847190328,9.6194027,1796.9,1796.6,10.03194273]
[1745847190516,9.6194027,1796.9,1796.5,5.5768]
[1745847190723,1.11271,1796.6,1796.5,63.30514273]
[1745847191016,1.11271,1796.6,1796.5,50.9042]
[1745847191220,1.11271,1796.6,1796.5,60.93614273]
[1745847191419,1.11269,1796.7,1796.5,65.25669273]
[1745847191620,7.2474027,1796.9,1796.6,10.03194273]
[1745847191821,7.2474027,1796.9,1796.8,11.14452273]
[1745847192023,8.3599627,1796.9,1796.7,3.57302]
[1745847192331,8.3599627,1796.9,1796.8,10.03194273]
[1745847192731,1.11265,1796.7,1796.6,2.4254]
[1745847193029,1.11271,1796.6,1796.5,3.2078]
[1745847193222,1.11276,1796.6,1796.4,1.11279]
[1745847193423,1.11271,1796.6,1796.5,10.03194273]
[1745847193920,1.11271,1796.6,1796.5,64.34251273]
[1745847194117,1.11279,1796.5,1796.2,7.7718]
[1745847194422,1.11279,1796.5,1796.4,10.03194273]
[1745847194733,1.11279,1796.5,1796.4,11.14475273]
[1745847194921,8.66949,1796.8,1796.4,1.11283]
[1745847195123,1.11277,1796.5,1796.3,2.2936]
[1745847195323,1.11283,1796.4,1796.3,53.1978]
[1745847195522,1.11281,1796.5,1796.4,1.11283]
[1745847195718,2.78194,1796.5,1796.2,3.2078]
[1745847195933,1.11296,1796.2,1796.1,4.564]
[1745847196232,5.20789,1796.4,1796.0,4.564]
[1745847196428,1.113,1796.2,1796.1,10.03194273]
[1745847196923,1.113,1796.2,1796.0,8.07314]
[1745847196924,1.11302,1796.1,1796.0,8.07314]
[1745847197123,0.0756921,1796.2,1795.9,4.564]
[1745847197325,1.11305,1796.1,1796.0,1.11306]
[1745847197627,1.11305,1796.1,1796.0,1.11305]
[1745847198036,1.11308,1796.0,1795.9,8.0732]
[1745847198224,1.11308,1796.0,1795.9,4.564]
[1745847198628,1.11308,1796.0,1795.9,1.11314]
[1745847199027,1.1887721,1796.0,1795.9,3.50924]
[1745847199243,0.0756921,1796.0,1795.9,3.50924]
[1745847199424,0.0756921,1796.0,1795.9,54.41344]
[1745847200734,2.4851921,1796.0,1795.9,54.41344]
[1745847201029,3.5982721,1796.0,1795.9,2.3961]
[1745847201235,1.11314,1795.9,1795.8,2.4173]
[1745847201430,3.96063921,1795.9,1795.8,2.4173]
[1745847201937,1.11345,1795.4,1795.3,3.2078]
[1745847202234,1.11364,1795.1,1795.0,3.2078]
[1745847202436,2.4777,1795.3,1794.9,3.58702]
[1745847202733,0.43792753,1795.2,1794.9,43.2733]
[1745847202936,1.1136,1795.2,1795.1,1.11364]
[1745847203132,1.55154044,1795.2,1795.0,11.14562273]
[1745847203327,1.55165872,1795.1,1795.0,12.50524273]
[1745847203527,4.02936872,1795.1,1794.9,45.366]
[1745847203727,3.59135,1795.1,1795.0,11.14564273]
[1745847203928,4.02937506,1795.1,1795.0,10.03194273]
[1745847204128,4.02937506,1795.1,1795.0,2.4733]
[1745847204329,2.99141716,1795.1,1795.0,3.587]
[1745847204524,2.99141716,1795.1,1795.0,13.61894273]
[1745847204737,4.10507716,1795.1,1794.9,3.2078]
[1745847204933,3.6670321,1795.1,1795.0,10.03194273]
[1745847205127,2.5533921,1795.1,1795.0,1.1137]
[1745847205332,0.0756921,1795.1,1795.0,64.54474273]
[1745847205733,0.0756921,1795.1,1795.0,13.64054273]
[1745847206742,0.51419392,1795.1,1795.0,13.64054273]
[1745847207138,2.6190921,1795.1,1795.0,13.64054273]
[1745847207440,2.6190921,1795.1,1795.0,64.54474273]
[1745847207441,0.0756921,1795.1,1795.0,64.54474273]
[1745847207935,3.2078,1795.5,1795.0,63.43104273]
[1745847208241,4.09569803,1795.4,1795.2,11.14552273]
[1745847208432,1.55230803,1795.3,1795.2,11.14552273]
[1745847208633,3.94330803,1795.3,1795.2,13.56492273]
[1745847208833,2.82979803,1795.3,1795.2,11.14552273]
[1745847209239,2.82979803,1795.3,1795.2,13.56492273]
[1745847209440,1.11341,1795.5,1795.2,63.35554273]
[1745847209738,1.55244463,1795.4,1795.3,3.2078]
[1745847209934,1.11358,1795.2,1794.9,3.2078]
[1745847210136,3.50456,1795.3,1795.2,10.03194273]
[1745847210336,1.11364,1795.1,1795.0,10.03194273]
[1745847210537,0.43885474,1795.1,1794.9,4.32153]
[1745847210739,2.391,1795.0,1794.9,1.11373]
[1745847211047,3.9436007,1795.0,1794.9,1.11376]
[1745847211232,2.8299007,1795.0,1794.9,1.11376]
[1745847211438,2.78458,1794.8,1794.2,3.22762]
[1745847211633,1.11401,1794.5,1794.4,10.03194273]
[1745847211844,1.5529107,1794.5,1794.4,10.03194273]
[1745847212044,1.11413,1794.3,1794.2,0.01982]
[1745847212238,4.7608307,1794.3,1794.2,0.01982]
[1745847212543,1.5530307,1794.3,1794.2,0.01982]
[1745847212940,0.4389007,1794.3,1794.2,0.01982]
[1745847213138,1.5530307,1794.3,1794.2,0.01982]
[1745847213338,4.09478974,1794.3,1794.2,0.01982]
[1745847213643,2.98065974,1794.3,1793.9,3.2078]
[1745847213842,12.31949974,1794.2,1793.6,3.2078]
[1745847214145,1.11438,1793.9,1793.8,10.03194273]
[1745847214340,0.43815974,1793.9,1793.8,10.03194273]
[1745847214547,9.54477,1794.1,1794.0,1.11432]
[1745847214740,4.09425835,1794.1,1793.9,1.11435]